Cogmind - Beta 15 @@@ ROGUE MODE // 2025.05.15 @ 01:44:25 Player: Eggpie Result: Destroyed by G-47 Trooper with Particle Gun Performance ------------- Evolutions (2) 1000 Regions Visited (3) 600 Robots Destroyed (25) 125 Value Destroyed (619) 619 Prototype IDs (4) 80 Alien Tech Used (0) 0 Bonus (0) 0 TOTAL SCORE: 2424 Bonus ------- None Cogmind --------- Core Integrity 0/550 Matter 238/300 Energy 9/100 System Corruption 0% Temperature Cool (10) Movement Flying (120) Ox1 Location -8/Materials Parts ------- > --- POWER (2) -------- (None) > --- PROPULSION (2) --- Flight Unit > --- UTILITY (4) ------ Small Storage Unit Visual Processing Unit Transport Network Coupler Dynamic Insulation System > --- WEAPON (3) ------- (None) > --- INVENTORY (8) ---- Advanced Visual Processing Unit Improved Sensor Array Matter Filter Reactive Plating Reactive Plating Dynamic Insulation System Dynamic Insulation System Dynamic Insulation System Peak State ------------ > --- POWER ------------ Improved Ion Engine Improved Ion Engine > --- PROPULSION ------- Improved Aluminum Leg Carbon-fiber Leg > --- UTILITY ---------- Small Storage Unit Visual Processing Unit Transport Network Coupler Reactive Plating > --- WEAPON ----------- Particle Gun Particle Cannon Enhanced Autogun > --- INVENTORY -------- Advanced Visual Processing Unit Matter Filter Reactive Plating Reactive Plating Dynamic Insulation System Dynamic Insulation System Dynamic Insulation System Dynamic Insulation System [Rating: 26] Favorites ----------- Power Improved Ion Engine Engine Improved Ion Engine Propulsion Compact Wheel Leg Improved Aluminum Leg Wheel Compact Wheel Flight Unit Flight Unit Utility Small Storage Unit Device Dynamic Insulation System Storage Small Storage Unit Processor Visual Processing Unit Protection Reactive Plating Weapon Heavy EM Pulse Gun Energy Gun Heavy EM Pulse Gun Energy Cannon Particle Cannon Ballistic Gun Enhanced Autogun Build | -11 -10 -9 -8 ------- Run | Yrd Mat Mat Mat Slots Evolved 4 | . . 2 2 Power 1 | . . . 1 Propulsion . | . . . . Utility 2 | . . 1 1 Weapon 1 | . . 1 . Parts Attached 31 | 6 3 10 12 Power 5 | 1 . 2 2 Engine 5 | 1 . 2 2 Core . | . . . . Reactor . | . . . . Propulsion 6 | 2 . 1 3 Treads . | . . . . Leg 3 | . . 1 2 Wheel 2 | 2 . . . Hover . | . . . . Flight 1 | . . . 1 Utility 6 | 1 1 1 3 Device 1 | . . . 1 Storage 1 | 1 . . . Processor 2 | . 1 1 . Hackware . | . . . . Protection 2 | . . . 2 Artifact . | . . . . Weapon 14 | 2 2 6 4 Energy Gun 10 | 1 2 6 1 Energy Cannon 2 | . . . 2 Ballistic Gun 2 | 1 . . 1 Ballistic Cannon . | . . . . Launcher . | . . . . Special Weapon . | . . . . Impact Weapon . | . . . . Slashing Weapon . | . . . . Piercing Weapon . | . . . . Special Melee Weapon . | . . . . Unidentified Prototypes 2 | . . 1 1 Parts Lost 9 | . . 7 2 Power . | . . . . Propulsion 3 | . . 1 2 Utility . | . . . . Weapon 6 | . . 6 . Highest Loss Streak 4 | . . 4 2 To Critical Strikes . | . . . . Average Backups 6 | 1 5 6 6 Power . | . . 1 . Propulsion . | . . . . Utility 2 | . . 2 6 Weapon 2 | . 5 2 . Tool/Special . | . . . . Unused Backups 10 | . 1 2 7 Power . | . . . . Propulsion . | . . . . Utility 8 | . . 1 7 Weapon 2 | . 1 1 . Tool/Special . | . . . . Average Slot Usage (%) 85 | . 92 93 73 Engine 13 | . 14 11 14 Leg 4 | . . . 12 Wheel 15 | . 28 21 . Storage 11 | . 14 11 9 Processor 15 | . 7 20 18 Protection 2 | . . . 6 Energy Gun 17 | . 25 28 1 Energy Cannon 1 | . . . 5 Ballistic Gun 2 | . 2 . 4 Peak Build Rating 26 | 6 11 17 26 Average Rating 14 | 3 9 14 18 On Entrance 6 | . 6 11 10 Naked Turns . | . . . . Heaviest Build 39 | 12 14 21 39 Greatest Support 28 | 26 26 26 28 Greatest Overweight (x) 4 | . . . 4 Average Overweight (x) . | . . . 1 Largest Inventory Capacity 8 | 8 8 8 8 Average Capacity 7 | 6 8 8 8 Most Carried 8 | 5 8 8 8 Average Carried 6 | 1 5 6 6 Final Capacity 8 | 8 8 8 8 Final Carried 8 | 1 7 6 8 Class Distribution -------------------- 68% | Mutant 23% | Skirmisher 4% | Scavenger-Mutant 3% | Scavenger-Tank Dominant Class ---------------- Mutant | -10/Materials Skirmisher | -9/Materials Mutant | -8/Materials Resources | -11 -10 -9 -8 ----------- Run | Yrd Mat Mat Mat Matter Collected 463 | 156 124 70 113 Remotely . | . . . . Salvage Created 848 | . 152 510 186 Parts 54 | . 9 34 11 Haulers Intercepted 2 | . 1 1 . Recyclers Shooed . | . . . . Parts Field Recycled . | . . . . Retrieved Matter . | . . . . Parts Self-Destructed . | . . . . Prevented . | . . . . Kills | -11 -10 -9 -8 ------- Run | Yrd Mat Mat Mat Combat Hostiles Destroyed 19 | . 3 10 6 Guns 12 | . 1 8 3 Cannons 3 | . . . 3 AOE 4 | . 2 2 . Classes Destroyed 8 | . 3 5 . Worker 1 | . . 1 . Hauler 2 | . 1 1 . Watcher 3 | . 1 2 . Swarmer 9 | . 3 3 3 Grunt 5 | . . 3 2 Brawler 1 | . . 1 . Duelist 2 | . . 1 1 Sentry 2 | . . 2 . Best Kill Streak 6 | . 3 6 2 Combat Bots Only 4 | . 3 4 2 Max Kills in Single Turn 2 | . 2 2 2 Gunslinging 1 | . . 1 . Exploded 2 | . 2 1 . Melee . | . . . . Uniques/NPCs Destroyed . | . . . . Combat | -11 -10 -9 -8 -------- Run | Yrd Mat Mat Mat Hostile Shots Fired 259 | . 5 87 167 Missed 77 | . 1 27 49 Hits 182 | . 4 60 118 Projectile 182 | . 4 60 118 Critical Strikes 1 | . . 1 . Damage Taken 2077 | . 36 714 1327 Core 751 | . . 194 557 Absorbed by Shields . | . . . . Ignored by Resistances 22 | . . . 22 Core Remaining (%) 83 | 100 100 51 . Volleys Fired 66 | . 8 37 21 Largest 3 | . 2 3 3 Hottest 158 | . 90 135 158 Shots Fired 146 | . 16 91 39 Gun 125 | . 16 91 18 Cannon 21 | . . . 21 Launcher . | . . . . Special . | . . . . Kinetic 15 | . . . 15 Thermal 24 | . . . 24 Explosive . | . . . . Electromagnetic 107 | . 16 91 . Robot Hit Streak 9 | . 7 9 5 Robot Miss Streak 6 | . 3 6 5 Penetration Max . | . . . . Secondary Targets 4 | . . 4 . Max Gunslinging Chain 1 | . . 1 . Shots Hit Robots 76 | . 9 45 22 Core Hits 33 | . 5 18 10 Critical Kills . | . . . . Critical Parts Destroyed . | . . . . Critical Strikes 3 | . 1 1 1 Burn 1 | . . . 1 Corrupt 2 | . 1 1 . Melee Attacks . | . . . . Impact . | . . . . Slashing . | . . . . Piercing . | . . . . Sneak Attacks . | . . . . Combat Hostiles . | . . . . Follow-up Attacks . | . . . . Damage Inflicted 1721 | . 250 958 513 Guns 1119 | . 154 738 227 Cannons 283 | . . . 283 Explosions 316 | . 96 220 . Melee . | . . . . Ramming 3 | . . . 3 Kinetic 200 | . . . 200 Thermal 626 | . 96 220 310 Explosive . | . . . . Electromagnetic 892 | . 154 738 . Impact . | . . . . Slashing . | . . . . Piercing . | . . . . Highest Corruption . | . . . . Average Corruption . | . . . . Corruption Purged . | . . . . Corruption Blocked . | . . . . Overload Shots . | . . . . Overflow Damage 21 | . 3 12 6 Projectiles 6 | . . . 6 Explosions 15 | . 3 12 . Melee . | . . . . Knockbacks . | . . . . Impact . | . . . . Kinetic . | . . . . Secondary . | . . . . Self-Inflicted Damage 69 | . . 68 1 Shots 2 | . . 2 . Rammed 2 | . . . 2 Targets Rammed 2 | . . . 2 Kicked . | . . . . Crushed . | . . . . Highest Temperature 389 | . 90 355 389 Average Temperature 133 | . 40 139 147 Received Heat Transfer 666 | . . 198 468 Effects 5 | . . 1 4 Shutdowns 2 | . . 1 1 Interference 3 | . . . 3 Siege Activations . | . . . . Martial Activations . | . . . . Shielding Activations . | . . . . Robots Disrupted . | . . . . Combat Hostiles . | . . . . Robots Corrupted 1 | . . 1 . Combat Hostiles . | . . . . Parts Fried 6 | . 1 5 . Impact Corruptions . | . . . . Robots Melted . | . . . . Combat Hostiles . | . . . . Parts Melted . | . . . . Heat Transferred 1029 | . 100 300 629 Parts Sabotaged . | . . . . Parts Stolen . | . . . . Parts Stripped . | . . . . Power Chain Reactions 5 | . 1 4 . Alert | -11 -10 -9 -8 ------- Run | Yrd Mat Mat Mat Maximum Alert Level . | . . . . Low Security (%) 100 | 100 100 100 100 Level 1 . | . . . . Level 2 . | . . . . Level 3 . | . . . . Level 4 . | . . . . Level 5 . | . . . . High Security . | . . . . Max Security . | . . . . Peak Influence 187 | . 88 187 67 Initial 61 | . . . 61 Average 45 | . 36 83 26 Influence Increases 685 | . 129 354 202 Destroy 0b10 Robot/C 380 | . 60 200 120 Destroy 0b10 Robot/NC 30 | . 10 20 . Destroy Leader 90 | . 14 56 20 Successful Hack 12 | . 12 . . Disable Machine 90 | . 15 45 30 Destroy Structure 23 | . 3 18 2 Partial Spotted 15 | . . 15 . Lose Combat Pursuer 45 | . 15 . 30 Influence Decreases 626 | . 127 209 290 Entered New Map 88 | . . 2 86 Time Decay 448 | . 127 137 184 Lost Part 90 | . . 70 20 Squads Dispatched 5 | . 1 1 3 Investigation 1 | . 1 . . Extermination . | . . . . Reinforcement 2 | . . 1 1 Assault . | . . . . Garrison 2 | . . . 2 Intercept . | . . . . Searches Triggered . | . . . . Construction Impeded . | . . . . Haulers Reinforced . | . . . . Active Scanning Responses . | . . . . Cargo Convoy Interrupts . | . . . . Stealth | -11 -10 -9 -8 --------- Run | Yrd Mat Mat Mat Distress Signals 1 | . . 1 . Communications Jammed . | . . . . Distress Signals . | . . . . Times Spotted 36 | . 5 20 11 Peak Tracking Total 8 | . 2 5 8 Tactical Retreats 2 | . 1 . 1 Traps | -11 -10 -9 -8 ------- Run | Yrd Mat Mat Mat Traps Triggered 1 | . 1 . . Indirectly . | . . . . Trap Hack Attempts . | . . . . Triggered . | . . . . Disarmed . | . . . . Reprogrammed . | . . . . Reused . | . . . . Traps Extracted . | . . . . Installed . | . . . . Triggered . | . . . . Machines | -11 -10 -9 -8 ---------- Run | Yrd Mat Mat Mat Machines Disabled 6 | . 1 3 2 Max in Single Turn 1 | . 1 1 1 Machines Repaired . | . . . . Machines Dismantled . | . . . . Machines Sabotaged . | . . . . Overloaded Fab Kills . | . . . . Hacking | -11 -10 -9 -8 --------- Run | Yrd Mat Mat Mat Machines Accessed 7 | . 6 1 . Terminals 5 | . 4 1 . Fabricators . | . . . . Repair Stations . | . . . . Recycling Units 2 | . 2 . . Scanalyzers . | . . . . Garrison Access . | . . . . Total Hacks 24 | . 22 2 . Successful 15 | . 15 . . Failed 9 | . 7 2 . Catastrophic . | . . . . Database Lockouts . | . . . . Manual . | . . . . Terminals 22 | . 20 2 . Fabricators . | . . . . Repair Stations . | . . . . Recycling Units 2 | . 2 . . Scanalyzers . | . . . . Garrison Access . | . . . . Terminal Hacks 13 | . 13 . . Record 5 | . 5 . . Prototype ID Bank 1 | . 1 . . Alert Level 1 | . 1 . . Locate Traps 1 | . 1 . . Dispatch Records 1 | . 1 . . Maintenance Status 1 | . 1 . . Transport Status 1 | . 1 . . Reinforcement Status 1 | . 1 . . Hauler Manifests 1 | . 1 . . Fabricator Hacks . | . . . . Repair Station Hacks . | . . . . Recycling Unit Hacks 2 | . 2 . . Report Inventory 2 | . 2 . . Scanalyzer . | . . . . Garrison Access Hacks . | . . . . Unauthorized Hacks . | . . . . Terminals . | . . . . Fabricators . | . . . . Repair Stations . | . . . . Recycling Units . | . . . . Scanalyzers . | . . . . Garrison Access . | . . . . Data Cores Recovered . | . . . . Used . | . . . . Hacking Detections 4 | . 3 1 . Full Trace Events . | . . . . Feedback Events . | . . . . Feedback Blocked . | . . . . Robot Schematics Acquired . | . . . . Robots Built . | . . . . Authchips . | . . . . Time . | . . . . Total Robot Build Rating . | . . . . Part Schematics Acquired . | . . . . Parts Built . | . . . . Authchips . | . . . . Time . | . . . . Total Part Build Rating . | . . . . Parts Repaired . | . . . . Time . | . . . . Parts Recycled . | . . . . Recycled Matter . | . . . . Retrieved Matter . | . . . . Retrieved Components . | . . . . Parts Scanalyzed . | . . . . Part Schematics Acquired . | . . . . Parts Damaged . | . . . . Bothacking | -11 -10 -9 -8 ------------ Run | Yrd Mat Mat Mat Used RIF Installer . | . . . . Robots Hacked . | . . . . Non-combat . | . . . . Combat . | . . . . Robot Hacks Applied . | . . . . Relay Couplers Released . | . . . . Fabnet Peak Effective % . | . . . . Robots Rewired . | . . . . Allies Hacked . | . . . . Hacks Repelled . | . . . . Allies | -11 -10 -9 -8 -------- Run | Yrd Mat Mat Mat Total Allies . | . . . . Largest Group . | . . . . Highest-Rated Group . | . . . . Highest-Rated Ally . | . . . . Total Orders . | . . . . Ally Attacks . | . . . . Total Damage . | . . . . Kills . | . . . . Allies Corrupted . | . . . . Allies Melted . | . . . . Intel | -11 -10 -9 -8 ------- Run | Yrd Mat Mat Mat Active Infowar (turns) 909 | . 184 325 400 Optics 909 | . 184 325 400 T.N.C. 632 | . . 287 345 Robot Analysis Total . | . . . . Derelict Logs Recovered . | . . . . Drone Launches . | . . . . Drone Recoveries . | . . . . Exploration | -11 -10 -9 -8 ------------- Run | Yrd Mat Mat Mat Turns Passed 1091 | 33 333 325 400 Spaces Moved 736 | 29 327 208 172 Core 54 | 14 . . 40 Treads . | . . . . Legs 131 | . . 2 129 Wheels 548 | 15 327 206 . Hover . | . . . . Flight 3 | . . . 3 Fastest Speed 50 | 50 90 90 120 Average Speed 111 | 70 90 90 183 Slowest Speed 260 | 90 90 120 260 Overloaded Moves . | . . . . Propulsion Burnouts . | . . . . Robots Hopped . | . . . . Potential Cave-ins . | . . . . Cave-ins Triggered . | . . . . Exploration Rate (%) 28 | 3 60 35 15 Regions Visited 3 Branch Regions . Pre-discovered Areas . | . . . . Known Exits Taken . | . . . . Unknown Exits Taken 3 | 1 1 1 . Scrap Searched . | . . . . Spaces Dug . | . . . . Terrain Destroyed 21 | . 3 16 2 Melee . | . . . . Projectile 2 | . . . 2 AOE 19 | . 3 16 . Terrain Rammed . | . . . . Walls Destroyed . | . . . . Machines Disabled . | . . . . Actions | -11 -10 -9 -8 --------- Run | Yrd Mat Mat Mat Total 890 | 40 350 272 228 Wait . | . . . . Move 733 | 28 326 207 172 Hop . | . . . . Pick Up 37 | 6 10 11 10 Fast Attach 5 | 1 . 1 3 Attach 21 | 5 1 8 7 Detach 1 | . . . 1 Swap 5 | . 2 1 2 Drop 20 | . 3 7 10 Fire 66 | . 8 37 21 Melee . | . . . . Ram 2 | . . . 2 Kick . | . . . . Crush . | . . . . Escape Stasis . | . . . . Rewire . | . . . . Trap . | . . . . Miscellaneous . | . . . . Route ------- -11/Scrapyard -10/Materials (discovered 3 exits: *Mat x2 / [*Min]) -9/Materials (discovered 2 exits: [*Mat] / [*Sto]) -8/Materials History --------- Turn | Location | Event 11 | -11/Scrapyard | Discovered new exit (range 16) 34 | -11/Scrapyard | Entered Materials 38 | -10/Materials | Discovered new exit (range 16) 248 | -10/Materials | Discovered new exit (range 11) 313 | -10/Materials | Build established: Mutant 342 | -10/Materials | Discovered new exit (range 3) 367 | -10/Materials | Entered another Materials area 367 | -9/Materials | Evolved 2 slots: Utility x1, Weapon x1 395 | -9/Materials | Discovered new exit (range 7) 622 | -9/Materials | Lost 3 parts (3w) 635 | -9/Materials | Discovered new exit (range 18) 692 | -9/Materials | Entered another Materials area 692 | -8/Materials | Evolved 2 slots: Power x1, Utility x1 715 | -8/Materials | Lost 4 parts (1n3w) 975 | -8/Materials | Garrison activated, responded to threat 1042 | -8/Materials | Core integrity fell below 50% 1076 | -8/Materials | Core integrity fell below 20% 1092 | -8/Materials | Destroyed by G-47 Trooper with Particle Gun Last Messages --------------- 00988_ K-01 Serf collects debris. 00999_ R-06 Scavenger collects Enh. Autogun. 01001_ K-01 Serf collects debris. 01003_ R-06 Scavenger collects Particle Gun. 01005_ Carbon-fiber Leg destroyed. 01006_ Dropped Imp. Ion Engine. 01007_ Dropped Particle Cannon. 01007_ Dropped Imp. Ion Engine. 01035_ Acquired Imp. Sensor Array. 01039_ Acquired 44 matter. 01040_ Slammed into T-07 Excavator. 01045_ Slammed into R-06 Scavenger. 01069_ Acquired Hvy. Particle Cannon. 01072_ S-10 Pest destroyed. 01081_ R-06 Scavenger collects Flight Unit. 01087_ Acquired Flight Unit. 01089_ Dropped Hvy. Particle Cannon. 01089_ R-06 Scavenger collects Hvy. Particle Cannon. 01090_ Acquired 13 matter. Map ----- +----------------------------------------------------+ | ?????#= """ # # #?????????# | | ?????# """ # ########?????????## | | ?????# """ # #?#######?????????? | | ?????# # # #?????????? | | ?????# + + #?????????? | | ?????# # # #?????????? | | ?????######## #########?????????? | | ???????# #????????????????? | | ???????# ! #????????????????? | | ???????#!! #????????????????? | | ???????# ! ! #????????????????? | | ???????# ! #????????????????? | | ???????#!! ### ###????????????????? | | ???????#####?# #??????????????????? | | ?????????????# #??????????????????? | | ?????????##### #??????????????????? | | ?????????# # #??????????????????? | | ?????????# # #??????????????????? | | ?????????# / # #??????????????????? | | ?????????# # #??????????????????? | | ?????????# # #??????????????????? | | ?????????# # #??????????????????? | | ?????????# !# #??????????????????? | | ?????????##r;# #??????????????????? | | ?# ## g #??????????????????? | | ?? """ + @ %g #??????????????????? | | ?? """ ## #??????????????????? | | ??? ?????# #??????????????????? | | ?????????# #??????????????????? | | ?????????# #??????????????????? | | ?????????# ?????????????????? | | ?????????# ###????????????????? | | ?????????# #??????????????????? | | ????????? +??????????????????? | | ????????###;## #??????????????????? | | ??????????###? #??????????????????? | | ?????????????? #??????????????????? | | ?????????????? #??????????????????? | | ?????????????? #??????????????????? | | ?????????????? #??????????????????? | | ?????????????? ???????????????????? | | ?????????????? ???????????????????? | | ?????????????? ???????????????????? | | ??????????????????????????????????? | | ??????????????????????????????????? | | ??????????????????????????????????? | | ??????????????????????????????????? | | ??????????????????????????????????? | | ??????????????????????????????????? | | ??????????????????????????????????? | +----------------------------------------------------+ Best States ------------- Heat Dissipation 31 Energy Generation 19 Energy Capacity 430 Matter Stores 300 Matter Capacity 300 Sight Range 18 Terrain Scan Density 10 EM Shielding 2 Armor Coverage 150 Resistance: KI 20 Evasion (%) 50 Item Schematics ----------------- None Robot Schematics ------------------ None Fabricated ------------ Nothing Repaired ---------- Nothing Alien Tech Used ----------------- None Achievements -------------- None Challenges ------------ None Game ------ Seed AlertAbsorptionProcessor Manual? 0 Play Time 00:15:09 Cumulative 23.9 hours Start 2025.05.15 @ 01:30:53 End 2025.05.15 @ 01:44:25 Sessions 1 Manual Loads 0 Difficulty Rogue Special Mode None Game No. 13 Rogue 7 Adventurer 0 Explorer 6 Win Type - Total 1 Types 1/0/0/0/0/0/0/0/0/0 Lore% 12 Gallery% 37 Achievement% 39 Wizard Run 0 Options --------- Layout 1 ASCII 0 Keyboard 0 Movement Mouse Keybinds 0 Fullscreen 1 Font 36/Smallcaps Map View 50x35 Zoom Use 0% Tactical HUD 1 Map Filters NONE Filters NONE Steam 1 RUN: 9772d33b-3c0b-4113-be20-275a2eca37c3